bitfinex-derivatives/quotes_BTCF0:USTF0_20260113
["timestamp","ask_amount","ask_price","bid_price","bid_amount"]
[1768286649455,8.977e-05,92091.0,92086.0,5.4e-07]
[1768286650058,0.010871,92090.0,92086.0,5.4e-07]
[1768286650748,0.1090064,92090.0,92086.0,5.4e-07]
[1768286650948,0.0981354,92087.0,92086.0,5.4e-07]
[1768286651152,0.0981354,92087.0,92041.0,0.09401712]
[1768286651153,0.1090094,92066.0,92041.0,0.09401712]
[1768286651363,0.1090094,92066.0,92045.0,0.09944928]
[1768286651364,0.010875,92058.0,92045.0,0.09944928]
[1768286651654,0.010876,92052.0,92045.0,1.6e-07]
[1768286651859,0.010876,92052.0,92040.0,0.09784]
[1768286652057,7.608e-05,92051.0,92033.0,9e-07]
[1768286652254,0.010878,92039.0,92023.0,0.07748]
[1768286652460,0.010878,92039.0,92026.0,0.09784]
[1768286653350,0.010878,92039.0,92025.0,0.10327334]
[1768286653552,0.0981354,92043.0,92025.0,0.10327334]
[1768286654649,0.010877,92042.0,92025.0,0.10327334]
[1768286654850,0.09335697,92041.0,92025.0,0.10327334]
[1768286655054,0.10423397,92040.0,92025.0,0.10327334]
[1768286656862,0.09335697,92040.0,92025.0,0.10327334]
[1768286658454,0.18989257,92046.0,92025.0,0.19490839]
[1768286658654,0.09335697,92045.0,92025.0,0.19490839]
[1768286659966,0.09795608,92051.0,92034.0,0.09163505]
[1768286660160,7.608e-05,92051.0,92034.0,0.09163505]
[1768286660960,0.18996865,92051.0,92029.0,0.09163505]
[1768286661166,0.09335697,92050.0,92029.0,0.09163505]
[1768286661463,0.18989257,92045.0,92025.0,0.19490839]
[1768286661659,0.09335697,92044.0,92025.0,0.10327334]
[1768286662961,0.18989257,92044.0,92025.0,0.10327334]
[1768286663158,0.09335697,92043.0,92025.0,0.00543334]
[1768286663358,0.09335697,92038.0,92025.0,0.10331334]
[1768286663765,0.09335697,92038.0,92025.0,0.05570393]
[1768286664368,0.09335697,92038.0,92016.0,0.09163505]
[1768286664572,0.09335697,92038.0,92017.0,0.18951505]
[1768286664958,0.09335697,92038.0,92018.0,0.09163505]
[1768286665774,0.00016295,92042.0,92019.0,0.04690019]
[1768286666071,0.00016295,92042.0,92020.0,0.12765524]
[1768286666270,0.00016295,92042.0,92025.0,0.09163505]
[1768286667771,0.00016295,92042.0,92025.0,0.12805333]
[1768286668273,0.00016295,92042.0,92026.0,0.09163505]
[1768286669074,0.00016295,92042.0,92026.0,0.12911831]
[1768286669267,0.10423297,92049.0,92028.0,0.09163505]
[1768286670064,0.10423297,92049.0,92030.0,0.09163505]
[1768286670474,7.608e-05,92051.0,92032.0,0.09163505]
[1768286670670,0.10423297,92054.0,92033.0,0.09163505]
[1768286671782,0.010876,92052.0,92033.0,0.09163505]
[1768286676977,0.010876,92052.0,92033.0,0.12880997]
[1768286677179,0.010876,92052.0,92035.0,0.09732744]
[1768286679377,0.10231439,92049.0,92031.0,0.09732744]
[1768286681191,0.03056008,92048.0,92031.0,0.09732744]
[1768286681385,0.03056008,92047.0,92031.0,0.09732744]
[1768286681591,0.09143839,92049.0,92037.0,0.13118742]
[1768286681776,0.09143839,92047.0,92029.0,0.10820644]
[1768286681978,0.09143839,92047.0,92037.0,0.13118742]
[1768286682176,0.03057558,92046.0,92037.0,0.13118742]
[1768286682489,0.09143839,92047.0,92031.0,0.09732744]
[1768286682689,0.03057558,92046.0,92031.0,0.09732744]
[1768286682886,0.09143839,92047.0,92031.0,0.09732744]
[1768286683077,0.03057559,92046.0,92031.0,0.09732744]
[1768286683281,0.09143839,92047.0,92031.0,0.09732744]
[1768286683589,0.09143839,92045.0,92031.0,0.09788]
[1768286683790,0.09143839,92044.0,92031.0,0.09788]
[1768286684192,0.09143839,92049.0,92034.0,0.13118742]
[1768286684390,0.03057619,92048.0,92040.0,0.13118742]
[1768286684586,0.09736173,92070.0,92042.0,0.09769749]
[1768286684780,0.09788,92066.0,92050.0,0.13118742]
[1768286685382,0.010875,92060.0,92050.0,0.13118742]
[1768286685794,0.010875,92060.0,92045.0,0.09732744]
[1768286685984,0.010875,92060.0,92041.0,0.19520744]
[1768286686184,0.010875,92060.0,92050.0,0.13118742]
[1768286691391,0.010875,92060.0,92041.0,0.19557749]
[1768286691392,0.10231339,92060.0,92041.0,0.29290493]
[1768286691586,0.10231339,92060.0,92050.0,0.13118742]
[1768286691997,0.010875,92057.0,92042.0,0.09732744]
[1768286692386,0.010875,92059.0,92047.0,0.13118742]
[1768286692585,0.010875,92061.0,92049.0,0.13118742]
[1768286697200,0.010875,92058.0,92049.0,0.13118742]
[1768286698295,0.010875,92058.0,92046.0,0.00016295]
[1768286698598,0.010875,92058.0,92048.0,0.13118742]
[1768286700102,0.010875,92058.0,92046.0,0.00016295]
[1768286700299,0.010875,92058.0,92048.0,0.13118742]
[1768286700702,0.010875,92058.0,92048.0,0.22851486]
[1768286701200,0.010875,92058.0,92048.0,0.13118742]
[1768286702101,0.010875,92059.0,92048.0,0.13118742]
[1768286702305,0.010875,92059.0,92049.0,0.13118742]
[1768286703504,0.010875,92059.0,92050.0,0.09732744]
[1768286705406,0.00543098,92065.0,92051.0,0.18861164]
[1768286705603,0.09730143,92074.0,92055.0,0.22666288]
[1768286705804,0.12641564,92073.0,92060.0,4.2e-07]
[1768286706003,0.12641564,92073.0,92060.0,0.13118742]
[1768286706004,0.010875,92063.0,92060.0,0.13118742]
[1768286706197,0.010875,92063.0,92055.0,8.8e-07]
[1768286706597,0.010875,92063.0,92053.0,0.13118742]
[1768286708003,0.010874,92067.0,92054.0,0.00011764]
[1768286708203,0.09788,92073.0,92051.0,0.09313618]
[1768286708204,0.010875,92064.0,92057.0,4.2e-07]
[1768286708407,0.010875,92064.0,92054.0,0.13118742]
[1768286708701,0.010875,92064.0,92051.0,0.09313618]
[1768286710007,0.010874,92068.0,92054.0,0.13118742]
[1768286710306,0.010874,92068.0,92058.0,0.13118742]
[1768286710990,0.010873,92078.0,92059.0,0.09313618]
[1768286711202,0.010873,92075.0,92068.0,0.13118742]
[1768286711402,0.010873,92075.0,92066.0,0.09313618]
[1768286711601,0.010873,92079.0,92066.0,0.09313618]
[1768286711991,0.010873,92079.0,92069.0,0.13118742]
[1768286716607,0.0054298,92085.0,92070.0,0.09045281]
[1768286716803,0.09788,92095.0,92076.0,0.09045281]
[1768286716996,0.09788,92095.0,92080.0,4.2e-07]
[1768286717498,0.09788,92095.0,92080.0,0.13118765]
[1768286717695,0.09788,92095.0,92071.0,0.09788]
[1768286717904,0.09788,92095.0,92080.0,4.2e-07]
[1768286718104,0.09788,92095.0,92080.0,0.13118742]
[1768286718306,0.09788,92095.0,92071.0,0.09788]
[1768286718705,0.13118742,92090.0,92071.0,0.09788]
[1768286719410,0.010872,92085.0,92071.0,0.09788]
[1768286719798,0.010872,92085.0,92072.0,0.09045281]
[1768286725098,0.13118742,92090.0,92072.0,0.09045281]
[1768286725616,0.13118742,92090.0,92072.0,0.18833281]
[1768286725798,0.13118742,92090.0,92072.0,0.09045281]
[1768286726002,0.13118742,92090.0,92072.0,0.18833281]
[1768286727311,0.010872,92085.0,92072.0,0.18833281]
[1768286735904,0.010872,92085.0,92072.0,0.09045281]
[1768286736114,0.010872,92085.0,92072.0,0.18833281]
[1768286736507,1.32832,92109.0,92065.0,0.00559393]
[1768286736508,0.07780998,92120.0,92074.0,0.09155512]
[1768286736715,0.39235406,92187.0,92110.0,0.2621644]
[1768286736716,0.00013022,92145.0,92110.0,0.2621644]
[1768286736913,0.010863,92160.0,92131.0,0.09976654]
[1768286737114,0.010863,92164.0,92131.0,0.09976654]
[1768286737307,0.010863,92160.0,92131.0,0.09976654]
[1768286737514,0.010863,92161.0,92131.0,0.09976654]
[1768286737818,0.010863,92161.0,92128.0,0.09788]
[1768286738118,0.010863,92161.0,92128.0,0.158195]
[1768286738318,0.010863,92161.0,92130.0,0.00829759]
[1768286738721,0.19406447,92158.0,92130.0,0.00829759]
[1768286738920,0.19406447,92156.0,92130.0,0.00829759]
[1768286739320,0.19406447,92155.0,92130.0,0.00829759]
[1768286739515,0.19406447,92154.0,92130.0,0.00829759]
[1768286739715,0.09984861,92152.0,92130.0,0.00829759]
[1768286740318,0.19406447,92152.0,92130.0,0.00829759]
[1768286740916,0.19406447,92152.0,92131.0,0.010867]
[1768286741121,0.09984861,92151.0,92131.0,0.010867]
[1768286741329,0.09984861,92151.0,92131.0,0.02220796]
[1768286742424,0.09984861,92151.0,92132.0,0.01032369]
[1768286742732,0.19406447,92151.0,92132.0,0.01032369]
[1768286742921,0.09421586,92144.0,92117.0,0.010868]
[1768286743115,0.19406447,92138.0,92120.0,0.010868]
[1768286743322,0.09984861,92137.0,92124.0,0.010867]
[1768286743633,0.00016285,92138.0,92124.0,0.010867]
[1768286743928,8.5e-07,92138.0,92120.0,0.11009023]
[1768286744131,8.5e-07,92138.0,92123.0,0.01032369]
[1768286744320,8.5e-07,92138.0,92126.0,0.010867]
[1768286747426,8.5e-07,92138.0,92129.0,0.010867]
[1768286748131,0.09984861,92154.0,92136.0,0.010866]
[1768286748325,0.0978,92155.0,92142.0,0.01617593]
[1768286748518,0.09421586,92154.0,92136.0,0.010866]
[1768286748723,0.09984861,92153.0,92130.0,0.010867]
[1768286748924,0.09984861,92151.0,92130.0,0.010867]
[1768286749120,0.09984861,92149.0,92130.0,0.010867]
[1768286749527,0.09984861,92149.0,92131.0,0.00016285]
[1768286751132,0.09984861,92148.0,92132.0,0.010866]
[1768286751435,0.09984861,92148.0,92131.0,0.00016285]
[1768286751732,0.19406447,92148.0,92131.0,0.00016285]
[1768286751938,0.19406447,92148.0,92131.0,0.01102985]
[1768286751939,0.09984861,92147.0,92131.0,0.01102985]
[1768286754137,0.19406447,92147.0,92131.0,0.00016285]
[1768286754343,0.19406447,92146.0,92131.0,0.00016285]
[1768286754541,0.19406447,92143.0,92131.0,0.00016285]
[1768286755041,0.19406447,92142.0,92131.0,0.00016285]
[1768286761350,0.09984861,92141.0,92131.0,0.00016285]
[1768286762448,0.19406447,92141.0,92131.0,0.00016285]
[1768286764147,0.19406447,92140.0,92131.0,0.00016285]
[1768286764347,0.09984861,92140.0,92131.0,0.00016285]
[1768286771966,0.19553827,92139.0,92128.0,0.010867]
[1768286772155,0.19553827,92137.0,92128.0,0.010867]
[1768286772352,0.09904493,92136.0,92128.0,0.010867]
[1768286772753,0.19553827,92136.0,92128.0,0.010867]
[1768286773052,0.09904493,92136.0,92128.0,0.010867]
[1768286774868,0.13679813,92196.0,92130.0,0.09399449]
[1768286775066,0.0978,92164.0,92158.0,0.09399449]
[1768286775260,0.010859,92195.0,92160.0,0.04557601]
[1768286775560,0.09695664,92179.0,92135.0,0.09072246]
[1768286775762,0.09695664,92174.0,92135.0,0.09072246]
[1768286775961,0.09695664,92170.0,92142.0,0.010865]
[1768286776161,0.09695664,92168.0,92142.0,0.010865]
[1768286776363,0.09695664,92166.0,92142.0,0.010865]
[1768286776762,0.09695664,92166.0,92145.0,0.010865]
[1768286777067,0.09359762,92163.0,92145.0,0.010865]
[1768286777258,0.0978,92167.0,92145.0,0.010865]
[1768286777259,0.09359762,92161.0,92145.0,0.010865]
[1768286777564,0.19055426,92160.0,92145.0,0.010865]
[1768286777767,0.09695664,92156.0,92135.0,0.09072246]
[1768286777960,0.19475664,92155.0,92135.0,0.09072246]
[1768286778161,0.19475664,92155.0,92140.0,0.010866]
[1768286779469,0.09695664,92154.0,92140.0,0.010866]
[1768286780160,0.19055426,92154.0,92140.0,0.010866]
[1768286780470,0.09695664,92153.0,92140.0,0.010866]
[1768286782973,0.09695664,92153.0,92143.0,0.010865]
[1768286783570,0.09695664,92153.0,92139.0,0.010866]
[1768286785771,0.19055426,92153.0,92139.0,0.010866]
[1768286786072,0.19055426,92151.0,92139.0,0.010866]
[1768286786267,0.09695664,92150.0,92139.0,0.010866]
[1768286787674,2.6e-07,92150.0,92145.0,0.00542626]
[1768286788566,0.0978,92155.0,92145.0,0.00542626]
[1768286789278,0.1419442,92170.0,92146.0,0.010865]
[1768286789668,0.19055426,92167.0,92146.0,0.010865]
[1768286789970,0.19055426,92163.0,92131.0,0.12661043]
[1768286790171,0.19055426,92157.0,92144.0,0.010865]
[1768286790371,0.09695664,92154.0,92144.0,0.010865]
[1768286791275,0.09359762,92151.0,92125.0,0.14922183]
[1768286791475,0.09359762,92149.0,92135.0,0.010866]
[1768286791669,0.09695664,92148.0,92135.0,0.010866]
[1768286791868,0.09695664,92146.0,92135.0,0.010866]
[1768286792069,0.19475664,92145.0,92135.0,0.010866]
[1768286792271,0.19055426,92142.0,92131.0,0.010867]
[1768286792472,0.19055426,92140.0,92125.0,0.00542744]
[1768286792674,0.09695664,92139.0,92125.0,0.00542744]
[1768286792872,0.19055426,92138.0,92125.0,0.01629444]
[1768286793076,0.09695664,92137.0,92125.0,0.01629444]
[1768286796369,0.09044912,92136.0,92125.0,0.01629444]
[1768286796569,0.0978,92135.0,92125.0,0.01629444]
[1768286796982,0.18824912,92135.0,92125.0,0.01629444]
[1768286797280,0.09044912,92134.0,92125.0,0.01629444]
[1768286797482,0.09044912,92134.0,92120.0,0.13093812]
[1768286798382,0.09044912,92132.0,92122.0,0.010868]
[1768286798883,0.09044912,92132.0,92120.0,0.13093812]
[1768286799076,1.2e-07,92132.0,92120.0,0.13093812]
[1768286799476,1.2e-07,92132.0,92121.0,0.010868]
[1768286800784,0.0978,92135.0,92117.0,0.010868]
[1768286800785,0.0991381,92130.0,92117.0,0.010868]
[1768286800985,0.09044912,92129.0,92117.0,0.010868]
[1768286801185,0.18958722,92129.0,92117.0,0.010868]
[1768286801382,0.18958722,92126.0,92113.0,0.010869]
[1768286801682,0.0978,92125.0,92113.0,0.010869]
[1768286801888,0.09044912,92124.0,92113.0,0.010869]
[1768286802277,0.253657,92124.0,92116.0,0.010868]
[1768286802472,0.0978,92123.0,92116.0,0.010868]
[1768286802787,0.0978,92123.0,92110.0,0.13093812]
[1768286803789,0.0978,92123.0,92107.0,0.19922529]
[1768286803985,0.18824912,92123.0,92110.0,0.13093812]
[1768286804788,0.18824912,92123.0,92116.0,0.010868]
[1768286804985,0.0978,92122.0,92110.0,0.13093812]
[1768286805385,0.0978,92121.0,92110.0,0.13093812]
[1768286806386,0.253657,92124.0,92115.0,0.010868]
[1768286806576,0.0991381,92126.0,92110.0,0.13093812]
[1768286806781,0.0978,92125.0,92118.0,0.010868]
[1768286806992,0.0978,92125.0,92116.0,0.13093812]
[1768286807291,0.0978,92125.0,92110.0,0.13093812]
[1768286807489,0.0978,92125.0,92117.0,0.010868]
[1768286807692,0.0978,92125.0,92110.0,0.13093812]
[1768286808393,0.0978,92125.0,92117.0,0.010868]
[1768286808589,0.09044912,92129.0,92117.0,0.010868]
[1768286808790,0.38985,92126.0,92117.0,0.010868]
[1768286808984,0.09044912,92129.0,92117.0,0.010868]
[1768286809178,0.93524,92127.0,92119.0,0.13093812]
[1768286809382,0.93524,92127.0,92117.0,0.14180612]
[1768286809795,0.93524,92127.0,92117.0,0.010868]
[1768286810583,0.09044912,92124.0,92110.0,0.07785484]
[1768286810885,0.18958722,92111.0,92093.0,0.23424365]
[1768286811093,0.04143588,92110.0,92100.0,0.14180812]
[1768286811287,0.946107,92127.0,92100.0,0.14180812]
[1768286811288,0.0978,92109.0,92100.0,0.14180812]
[1768286811597,0.0991381,92116.0,92100.0,0.14180812]
[1768286811598,0.0978,92108.0,92100.0,0.14180812]
[1768286811791,0.0978,92107.0,92100.0,0.01087]
[1768286812095,0.0978,92106.0,92100.0,0.01087]
[1768286812605,0.0978,92106.0,92100.0,0.010807]
[1768286812800,0.1969381,92106.0,92091.0,0.010871]
[1768286812990,0.09044912,92104.0,92091.0,0.010871]
[1768286813292,0.09044912,92103.0,92091.0,0.010871]
[1768286813498,0.09044912,92102.0,92091.0,0.010871]
[1768286814700,0.0991381,92103.0,92091.0,0.010871]
[1768286820598,0.0978,92106.0,92094.0,0.010871]
[1768286820903,0.18824912,92106.0,92094.0,0.010871]
[1768286821503,0.09044912,92105.0,92090.0,0.14180912]
[1768286821910,0.09044912,92105.0,92079.0,0.19717333]
[1768286822097,0.09044912,92099.0,92081.0,0.010872]
[1768286822402,0.09044912,92090.0,92077.0,0.01100525]
[1768286822711,0.13093812,92091.0,92070.0,0.13093812]
[1768286822712,0.09044912,92087.0,92073.0,0.010873]
[1768286823201,0.09044912,92087.0,92065.0,0.10528294]
[1768286823202,0.18958722,92082.0,92065.0,0.00543098]
[1768286823409,0.22138724,92080.0,92065.0,0.00543098]
[1768286823594,0.0991381,92097.0,92072.0,0.09985196]
[1768286823799,0.0978,92096.0,92073.0,0.010873]
[1768286824107,0.23007622,92090.0,92073.0,0.010873]
[1768286824309,0.0991381,92089.0,92073.0,0.010873]
[1768286825108,0.01087,92101.0,92065.0,0.00543098]
[1768286825109,0.09773971,92109.0,92084.0,0.0942368]
[1768286825313,0.09784,92108.0,92090.0,0.14180912]
[1768286825515,0.19652692,92108.0,92093.0,0.010871]
[1768286825703,0.19652692,92108.0,92096.0,0.010871]
[1768286826013,9.2e-07,92107.0,92099.0,0.01087]
[1768286826210,0.09773971,92109.0,92099.0,0.01087]
[1768286826414,0.09784,92108.0,92099.0,0.01087]
[1768286828414,0.09868692,92108.0,92099.0,0.01087]
[1768286828603,0.09784,92107.0,92099.0,0.01087]
[1768286828799,0.09868692,92108.0,92099.0,0.01087]
[1768286829115,0.09868692,92106.0,92099.0,0.01087]
[1768286829816,0.09868692,92106.0,92095.0,0.010871]
[1768286831018,0.09868692,92106.0,92091.0,0.010871]
[1768286832913,0.09868692,92105.0,92091.0,0.010871]
[1768286833310,0.09868692,92110.0,92095.0,0.13093812]
[1768286833518,0.09773971,92107.0,92090.0,0.010871]
[1768286833709,0.09868692,92106.0,92090.0,0.14180912]
[1768286834014,0.09773971,92105.0,92090.0,0.14180912]
[1768286834313,0.0931638,92104.0,92090.0,0.14180912]
[1768286835219,0.0931638,92104.0,92090.0,0.010871]
[1768286835417,0.0931638,92104.0,92090.0,0.14180912]
[1768286837311,0.0931638,92107.0,92090.0,0.14180912]
[1768286837511,0.09784,92109.0,92097.0,0.13093812]
[1768286837712,0.09784,92109.0,92099.0,0.13093812]
[1768286838517,0.0931638,92121.0,92102.0,0.18181991]
[1768286838709,0.0969471,92124.0,92110.0,0.13093812]
[1768286838913,0.09784,92125.0,92110.0,0.13093812]
[1768286839113,0.0931638,92129.0,92110.0,0.13093812]
[1768286839420,0.0931638,92114.0,92093.0,0.09081262]
[1768286839618,0.0931638,92111.0,92090.0,0.13093812]
[1768286839807,0.0931638,92111.0,92100.0,0.13093812]
[1768286843223,0.0931638,92115.0,92100.0,0.13093812]
[1768286844127,0.0969471,92118.0,92100.0,0.13093812]
[1768286844426,0.1901109,92118.0,92100.0,0.13093812]
[1768286844628,0.0931638,92117.0,92100.0,0.13093812]
[1768286845923,0.0931638,92115.0,92100.0,0.13093812]
[1768286848027,0.0931638,92115.0,92098.0,0.01087]
[1768286848228,0.0931638,92115.0,92100.0,0.13093812]
[1768286849023,0.0931638,92119.0,92100.0,0.13093812]
[1768286849227,0.22877812,92120.0,92101.0,0.09081262]
[1768286849426,0.32194192,92120.0,92101.0,0.09081262]
[1768286849821,0.1910038,92120.0,92101.0,0.18181991]
[1768286850027,0.0931638,92124.0,92110.0,0.13093812]
[1768286850229,0.0969471,92126.0,92110.0,0.13093812]
[1768286850230,0.09784,92123.0,92110.0,0.13093812]
[1768286852128,0.0931638,92122.0,92110.0,0.13093812]
[1768286852329,0.0931638,92122.0,92102.0,0.09081262]
[1768286852530,0.22410192,92120.0,92102.0,0.09081262]
[1768286854327,0.0931638,92119.0,92101.0,0.01087]
[1768286854630,0.0901715,92118.0,92101.0,0.01087]
[1768286856232,0.0901715,92117.0,92101.0,0.01087]
[1768286858735,0.0901715,92120.0,92101.0,0.01087]
[1768286859234,0.0901715,92117.0,92097.0,0.10168362]
[1768286859532,0.0901715,92116.0,92097.0,0.10168362]
[1768286859934,0.0901715,92116.0,92100.0,0.01087]
[1768286862637,0.0901715,92116.0,92089.0,0.09739865]
[1768286862638,0.0901715,92110.0,92089.0,0.09834574]
[1768286862837,0.010866,92134.0,92082.0,0.136845]
[1768286862838,0.0901715,92106.0,92087.0,0.09784]
[1768286863140,0.0901715,92103.0,92087.0,0.09784]
[1768286863345,0.0901715,92108.0,92087.0,0.09784]
[1768286863728,0.0901715,92107.0,92087.0,0.09784]
[1768286864541,0.0901715,92107.0,92088.0,0.010872]
[1768286867336,0.19015726,92106.0,92088.0,0.010872]
[1768286867541,0.0901715,92105.0,92088.0,0.010872]
[1768286870242,0.0901715,92104.0,92087.0,0.09784]
[1768286870450,0.0901715,92104.0,92056.0,0.010875]
[1768286870451,0.0901715,92099.0,92076.0,0.09784]
[1768286870634,0.09998576,92096.0,92076.0,0.09784]
[1768286870947,0.0901715,92093.0,92076.0,0.09784]
[1768286871543,0.0901715,92093.0,92077.0,0.010873]
[1768286872240,0.0901715,92090.0,92076.0,0.09784]
[1768286872446,0.0901715,92090.0,92069.0,0.20049107]
[1768286872447,0.0901715,92088.0,92069.0,0.10214533]
[1768286872747,0.0901715,92087.0,92069.0,0.010874]
[1768286872948,0.19015726,92086.0,92069.0,0.010874]
[1768286873143,0.19015726,92085.0,92069.0,0.010874]
[1768286873342,0.0901715,92084.0,92069.0,0.010874]
[1768286873842,0.0901715,92082.0,92068.0,0.09784]
[1768286874551,0.0901715,92081.0,92068.0,0.09784]
[1768286893761,0.00016284,92095.0,92074.0,0.19470238]
[1768286893958,0.1805,92118.0,92086.0,0.09038499]
[1768286893959,0.10887693,92108.0,92086.0,0.09038499]
[1768286894154,0.10887693,92108.0,92072.0,0.010873]
[1768286894155,0.09784,92107.0,92091.0,0.09470286]
[1768286894355,0.09800793,92109.0,92091.0,0.18508785]
[1768286894567,0.09761068,92144.0,92069.0,0.1086077]
[1768286894568,0.28856918,92123.0,92102.0,0.18508785]
[1768286894773,0.09800793,92121.0,92104.0,0.09470286]
[1768286894962,0.09800793,92121.0,92105.0,0.09784]
[1768286895481,0.09800793,92121.0,92100.0,0.18508785]
[1768286895784,0.09800793,92121.0,92101.0,0.09784]
[1768286897072,0.09800793,92121.0,92100.0,0.18508785]
[1768286897470,0.09800793,92121.0,92101.0,0.09784]
[1768286898376,0.09800793,92116.0,92102.0,0.09784]
[1768286898564,0.09800793,92116.0,92103.0,0.09784]
[1768286899674,0.09800793,92115.0,92103.0,0.09784]
[1768286900175,0.09784,92131.0,92103.0,0.09784]
[1768286900176,0.19072918,92114.0,92103.0,0.09784]
[1768286900378,0.00192865,92106.0,92092.0,0.09784]
[1768286900581,0.00192865,92104.0,92092.0,0.09784]
[1768286901779,0.09272125,92110.0,92092.0,0.09784]
[1768286902078,0.0946499,92107.0,92092.0,0.09784]
[1768286902279,0.00192865,92106.0,92092.0,0.09784]
[1768286903079,0.00192865,92106.0,92087.0,0.010872]
[1768286903276,0.00192865,92106.0,92086.0,0.18508785]
[1768286903478,0.09272125,92105.0,92087.0,0.09784]
[1768286903683,0.09272125,92105.0,92088.0,0.09784]
[1768286904778,0.09272125,92105.0,92081.0,0.09470286]
[1768286904981,0.09272125,92105.0,92082.0,0.09784]
[1768286905174,0.09272125,92105.0,92083.0,0.09470286]
[1768286905375,0.09272125,92105.0,92083.0,0.18508785]
[1768286905575,0.00016284,92106.0,92086.0,0.18508785]
[1768286905781,0.00016284,92106.0,92087.0,0.18508785]
[1768286906082,0.00016284,92106.0,92089.0,0.18508785]
[1768286906282,0.00016284,92106.0,92090.0,0.09470286]
[1768286906582,0.00016284,92106.0,92090.0,0.18508785]
[1768286908587,0.00016284,92106.0,92089.0,0.010872]
[1768286908779,0.00016284,92106.0,92089.0,0.10557486]
[1768286909085,0.09784,92119.0,92101.0,0.18508785]
[1768286909271,0.09784,92119.0,92103.0,0.09470286]
[1768286909676,0.09272125,92124.0,92103.0,0.09470286]
[1768286909872,0.010868,92117.0,92103.0,0.09470286]
[1768286910073,0.010868,92117.0,92085.0,0.010872]
[1768286910074,0.10359025,92115.0,92101.0,0.09784]
[1768286910282,0.10359025,92115.0,92093.0,0.09038499]
[1768286910283,0.010869,92111.0,92093.0,0.09038499]
[1768286910482,0.010869,92111.0,92101.0,0.00016284]
[1768286910979,0.10359025,92111.0,92085.0,0.09470286]
[1768286911186,0.10359025,92111.0,92086.0,0.09784]
[1768286911383,0.10359025,92108.0,92086.0,0.09784]
[1768286911793,0.10359025,92108.0,92086.0,0.19254286]
[1768286911984,0.10359025,92108.0,92086.0,0.28292785]
[1768286912791,0.10359025,92108.0,92087.0,0.09470286]
[1768286912988,0.10359125,92102.0,92086.0,0.09784]
[1768286913376,0.10359125,92102.0,92080.0,0.09470286]
[1768286913576,0.10359125,92102.0,92081.0,0.09784]
[1768286913883,0.10359125,92102.0,92081.0,0.19254286]
[1768286914386,0.10359125,92102.0,92081.0,0.09470286]
[1768286914591,0.10359125,92102.0,92082.0,0.09784]
[1768286916993,0.10359125,92102.0,92081.0,0.09470286]
[1768286916994,0.10359125,92102.0,92083.0,0.09784]
[1768286917190,0.10713075,92099.0,92083.0,0.09784]
[1768286918294,0.01087,92103.0,92083.0,0.19262811]
[1768286919299,0.14193533,92100.0,92083.0,0.19262811]
[1768286924098,0.09626075,92111.0,92086.0,0.09478811]
[1768286924289,0.010869,92108.0,92091.0,0.18646319]
[1768286924600,0.13106533,92101.0,92091.0,0.09478811]
[1768286924786,0.13106533,92101.0,92085.0,0.09478811]
[1768286925183,0.010871,92095.0,92085.0,0.09478811]
[1768286925400,0.010871,92095.0,92086.0,0.09784]
[1768286925799,0.01087,92100.0,92086.0,0.09784]
[1768286926198,0.13106533,92101.0,92086.0,0.09784]
[1768286926900,0.13106533,92101.0,92086.0,0.19262811]
[1768286928402,0.13106533,92101.0,92086.0,0.28430319]
[1768286929203,0.13106533,92101.0,92086.0,0.18646319]
[1768286929591,0.14193533,92101.0,92086.0,0.18646319]
[1768286930195,0.14193533,92101.0,92087.0,0.09784]
[1768286930991,0.01087,92105.0,92090.0,0.18646319]
[1768286931189,0.13106533,92100.0,92091.0,0.18646319]
[1768286932504,0.13106533,92101.0,92091.0,0.18646319]
[1768286935193,0.13106533,92101.0,92091.0,0.09478811]
[1768286936098,0.13106533,92101.0,92087.0,0.18951508]
[1768286936904,0.13106533,92101.0,92087.0,0.28430319]
[1768286939506,0.13106533,92101.0,92088.0,0.09478811]
[1768286939907,0.13106533,92101.0,92089.0,0.09167508]
[1768286940201,0.13106533,92101.0,92089.0,0.18646319]
[1768286940997,0.01087,92105.0,92089.0,0.18646319]
[1768286941192,0.13106533,92100.0,92091.0,0.18646319]
[1768286941702,0.10887184,92115.0,92096.0,0.09478811]
[1768286941999,0.01103184,92115.0,92103.0,0.09478811]
[1768286942389,0.13106533,92113.0,92103.0,0.09478811]
[1768286942903,0.00016284,92115.0,92104.0,0.18646319]
[1768286943102,0.09626075,92140.0,92114.0,0.18646319]
[1768286943103,0.27979589,92121.0,92114.0,0.18646319]
[1768286943407,0.010867,92128.0,92117.0,0.18646319]
[1768286944204,0.010867,92128.0,92111.0,0.09478811]
[1768286944399,0.010867,92128.0,92112.0,0.09167508]
[1768286944600,0.13106533,92130.0,92113.0,0.19226586]
[1768286946506,0.13106533,92130.0,92114.0,0.09747775]
[1768286947002,0.13106533,92130.0,92114.0,0.19501016]
[1768286949698,0.13106533,92130.0,92114.0,0.09753241]
[1768286952218,0.010867,92129.0,92114.0,0.09753241]
[1768286961920,0.010867,92129.0,92114.0,0.1928221]
[1768286962422,0.010867,92129.0,92116.0,0.09528969]
[1768286964420,0.010867,92126.0,92115.0,0.09203297]
[1768286964619,0.09425369,92128.0,92111.0,0.09784]
[1768286964812,0.13106533,92121.0,92110.0,0.19312969]
[1768286965119,0.13106533,92121.0,92110.0,0.09784]
[1768286965326,0.13106533,92120.0,92110.0,0.09784]
[1768286965822,0.010868,92123.0,92110.0,0.09784]
[1768286966122,0.13106533,92120.0,92110.0,0.09784]
[1768286968021,0.14193333,92120.0,92110.0,0.09784]
[1768286968218,0.19106985,92118.0,92097.0,0.09203297]
[1768286968422,0.13106533,92110.0,92103.0,0.09784]
[1768286968723,0.010869,92108.0,92094.0,0.09784]
[1768286968907,0.13106533,92104.0,92094.0,0.09784]
[1768286969324,0.22531902,92110.0,92094.0,0.09784]
[1768286969523,0.22531902,92110.0,92092.0,0.09528969]
[1768286970315,0.010869,92109.0,92092.0,0.09528969]
[1768286972421,0.13106533,92102.0,92091.0,0.18987297]
[1768286972622,0.13106533,92102.0,92091.0,0.09784]
[1768286973023,0.010869,92109.0,92091.0,0.19312969]
[1768286973223,0.13106533,92101.0,92091.0,0.19312969]
[1768286973412,0.010869,92109.0,92091.0,0.19312969]
[1768286973927,0.010869,92109.0,92091.0,0.28516266]
[1768286975522,0.13106533,92101.0,92091.0,0.28516266]
[1768286975725,0.13106533,92101.0,92092.0,0.18947796]
[1768286975923,0.13106533,92101.0,92093.0,0.09601477]
[1768286976314,0.13106533,92110.0,92093.0,0.09601477]
[1768286976509,0.13106533,92110.0,92093.0,0.18947796]
[1768286976716,0.13106533,92110.0,92099.0,0.18947796]
[1768286976921,0.010868,92117.0,92100.0,0.09601477]